fUSD/lending_fUSD_20250213
["ID","MTS","AMOUNT","RATE_DAILY","PERIOD"]
[352907874,1739407787388,-500.0,0.0003,90]
[352907875,1739407787411,-500.0,0.0003,90]
[352907876,1739407787438,-15000.0,0.0003,60]
[352907877,1739407787462,-1047.17934182,0.0003,120]
[352907878,1739407787486,-5532.83767907,0.0003,120]
[352907879,1739407787511,-1000.0,0.0003,120]
[352907880,1739407787535,-484.10612696,0.0003,120]
[352907881,1739407787562,-3165.07,0.0003,120]
[352907882,1739407787586,-21638.51369192,0.0003,120]
[352907883,1739407787610,-1985.78856289,0.0003,120]
[352907884,1739407787633,-800.0,0.0003,120]
[352907885,1739407787658,-30000.0,0.0003,120]
[352907886,1739407787681,-50000.0,0.0003,120]
[352907887,1739407787707,-5000.0,0.0003,120]
[352907888,1739407787730,-5012.21154365,0.0003,120]
[352907889,1739407787754,-200.0,0.0003,120]
[352907890,1739407787778,-193.15555556,0.0003,120]
[352907891,1739407787801,-151.0,0.0003,120]
[352907892,1739407787829,-5134.20051456,0.0003,120]
[352907893,1739407787854,-49010.0,0.0003,120]
[352907894,1739407787879,-6161.62112456,0.0003,120]
[352907895,1739407787906,-500.0,0.00030053,120]
[352907896,1739407787931,-7669.02,0.000301,120]
[352907897,1739407787957,-200.0,0.00030137,60]
[352907898,1739407803617,314.21592814,0.0002073,120]
[352907899,1739407810490,200.0,0.0002,120]
[352907900,1739407812718,200.0,0.0002,120]
[352907901,1739407820102,200.0,0.0002,120]
[352907919,1739407832405,-821.67,0.0001267,2]
[352907920,1739407832415,-150.0,0.00012835,2]
[352907921,1739407832425,-550.0,0.00013,2]
[352907922,1739407832435,-752.15,0.00013878,2]
[352907923,1739407832444,-150.0,0.00013937,2]
[352907924,1739407832454,-150.0,0.00013937,2]
[352907925,1739407832463,-500.0,0.00014,5]
[352907926,1739407832473,-150.0,0.000144,2]
[352907927,1739407832483,-1000.0,0.0001452,3]
[352907928,1739407832493,-505.25,0.00014521,2]
[352907929,1739407832503,-1000.0,0.00014543,2]
[352907930,1739407832513,-1483.05,0.00014593,2]
[352907931,1739407832523,-29999.99,0.00014593,2]
[352907932,1739407832532,-385.25,0.00014593,2]
[352907933,1739407832542,-150.0,0.00014767,2]
[352907934,1739407832552,-1000.0,0.00014794,3]
[352907935,1739407832563,-200.0,0.000149,4]
[352907936,1739407832573,-200.0,0.000149,4]
[352907937,1739407832587,-200.0,0.000149,4]
[352907938,1739407832597,-200.0,0.000149,5]
[352907939,1739407832608,-192.63,0.000149,5]
[352907940,1739407832618,-821.67,0.00014934,2]
[352907941,1739407832630,-1000.0,0.00014999,2]
[352907942,1739407832639,-151.0,0.00015,2]
[352907943,1739407832649,-151.0,0.00015,2]
[352907944,1739407832659,-600.0,0.00015,2]
[352907945,1739407832669,-173.44,0.0001506,2]
[352907946,1739407832678,-1000.0,0.00015068,3]
[352907947,1739407832688,-1000.0,0.000152,2]
[352907948,1739407832698,-2538.17369548,0.00015268,2]
[352907949,1739407832707,-151.0,0.00015269,2]
[352907950,1739407832717,-151.0,0.00015269,2]
[352907951,1739407832727,-151.0,0.0001529,2]
[352907952,1739407832737,-151.0,0.0001529,2]
[352907953,1739407832748,-30000.0,0.00015291,2]
[352907954,1739407832757,-151.0,0.000153,2]
[352907955,1739407832766,-151.0,0.000153,2]
[352907956,1739407832776,-151.0,0.000153,2]
[352907957,1739407832786,-151.0,0.000153,2]
[352907958,1739407832795,-800.0,0.000153,5]
[352907959,1739407832806,-863.4295698,0.00015301,2]
[352907960,1739407832817,-299.99,0.0001531,2]
[352907961,1739407832827,-1000.0,0.00015342,3]
[352907962,1739407832837,-1700.0,0.000154,5]
[352907963,1739407832847,-1000.0,0.000154,2]
[352907964,1739407832856,-3747.20591,0.0001546,2]
[352907965,1739407832867,-2600.0,0.000155,5]
[352907966,1739407832877,-205.29,0.00015513,2]
[352907967,1739407832887,-150.0,0.00015518,2]
[352907968,1739407832896,-150.0,0.00015518,2]
[352907969,1739407832906,-150.0,0.00015528,2]
[352907970,1739407832915,-150.0,0.0001553,2]
[352907971,1739407832925,-150.0,0.00015534,2]
[352907972,1739407832935,-150.0,0.00015536,2]
[352907973,1739407833166,-3175.204,0.00015537,2]
[352907974,1739407833177,-179.049,0.00015538,2]
[352907975,1739407833187,-150.0,0.00015546,2]
[352907976,1739407833196,-150.0,0.00015548,2]
[352907977,1739407833206,-150.0,0.0001555,2]
[352907978,1739407833215,-151.0,0.00015553,2]
[352907979,1739407833225,-151.0,0.00015553,2]
[352907980,1739407833236,-223.1949836,0.00015553,2]
[352907981,1739407833246,-1000.0,0.00015554,2]
[352907982,1739407833256,-150.0,0.00015556,2]
[352907983,1739407833266,-262.99849374,0.00015562,2]
[352907984,1739407833275,-150.0,0.00015572,2]
[352907985,1739407833285,-150.0,0.00015582,2]
[352907986,1739407833295,-150.0,0.00015583,2]
[352907987,1739407833305,-150.0,0.00015591,2]
[352907988,1739407833315,-193.4631959,0.000156,2]
[352907989,1739407833324,-200.0,0.000156,7]
[352907990,1739407833334,-200.0,0.000156,7]
[352907991,1739407833344,-200.0,0.000156,6]
[352907992,1739407833355,-200.0,0.000156,6]
[352907993,1739407833365,-200.0,0.000156,6]
[352907994,1739407833375,-200.0,0.000156,5]
[352907995,1739407833385,-200.0,0.000156,5]
[352907996,1739407833395,-200.0,0.000156,4]
[352907997,1739407833405,-200.0,0.000156,4]
[352907998,1739407833415,-200.0,0.000156,8]
[352907999,1739407833424,-200.0,0.000156,8]
[352908000,1739407833434,-200.0,0.000156,7]
[352908001,1739407833444,-200.0,0.000156,5]
[352908002,1739407833453,-200.0,0.000156,5]
[352908003,1739407833463,-3400.0,0.000156,5]
[352908004,1739407833473,-1000.0,0.000156,2]
[352908005,1739407833483,-150.0,0.0001561,2]
[352908006,1739407833493,-752.15,0.00015612,2]
[352908007,1739407833503,-23522.42912039,0.00015614,5]
[352908008,1739407833516,-486.87103,0.00015614,5]
[352908011,1739407838236,-14494.14279793,0.00015291,2]
[352908012,1739407838248,-18586.88972238,0.00015614,5]
[352908013,1739407838399,-311.78968685,0.00015614,5]
[352908018,1739407840658,-94793.89996909,0.00015614,5]
[352908059,1739407843812,-633.07040001,0.00015614,5]
[352908061,1739407846804,-9789.47016,0.00015614,5]
[352908065,1739407872833,-513.88306791,0.0002073,60]
[352908066,1739407872890,-1383.20027076,0.0002073,90]
[352908067,1739407872945,-506.16016103,0.0002073,90]
[352908068,1739407872979,-273.30114756,0.0002073,60]
[352908069,1739407873005,-199.00463924,0.0002073,60]
[352908070,1739407873032,-33844.96742657,0.0002073,60]
[352908071,1739407903889,2500.0,0.00016438,120]
[352908072,1739407904157,2500.0,0.00016575,120]
[352908073,1739407904428,2500.0,0.00016712,120]
[352908074,1739407904683,2500.0,0.00016849,120]
[352908075,1739407904947,1764.94112677,0.00016986,120]
[352908076,1739407950711,150.0,0.00019718,120]
[352908077,1739407957732,2692.256,0.0002073,60]
[352908078,1739407958187,200.0,0.0002,120]
[352908079,1739407977583,200.0,0.0002,120]
[352908080,1739408037140,1336.99,0.00019479,120]
[352908081,1739408037403,1336.99,0.00019479,120]
[352908082,1739408037663,1336.99,0.00019479,120]
[352908083,1739408037935,1336.99,0.00019479,120]
[352908084,1739408038361,1336.99,0.00019479,120]
[352908085,1739408038612,1336.99,0.00019479,120]
[352908086,1739408038862,1336.99,0.00019479,120]
[352908087,1739408039143,1336.99,0.00019479,120]
[352908088,1739408039359,1336.99,0.00019479,120]
[352908089,1739408039617,1336.99,0.00019479,120]
[352908090,1739408039870,1336.99,0.00019479,120]
[352908091,1739408040121,1336.99,0.00019479,120]
[352908092,1739408040381,1336.99,0.00019479,120]
[352908093,1739408040640,1336.99,0.00019479,120]
[352908094,1739408040925,1336.99,0.00019479,120]
[352908095,1739408041212,1336.99,0.00019479,120]
[352908096,1739408041816,1336.99,0.00019479,120]
[352908097,1739408042115,1336.99,0.00019479,120]
[352908098,1739408042651,1336.99,0.00019479,120]
[352908099,1739408042713,1336.99,0.00019479,120]
[352908100,1739408042891,1336.99,0.00019479,120]
[352908101,1739408043136,1336.99,0.00019479,120]
[352908102,1739408043401,1336.99,0.00019479,120]
[352908103,1739408043701,1337.18758272,0.00019479,120]
[352908104,1739408044209,595.23624391,0.00020738,60]
[352908105,1739408080672,1895.8824,8.836e-05,2]
[352908106,1739408133645,379.58,0.00010137,2]
[352908107,1739408190715,150.0,0.00019828,120]
[352908108,1739408202778,277.3623352,0.00020738,120]
[352908109,1739408250745,150.0,0.00019991,120]
[352908110,1739408261546,1308.0541,8.836e-05,2]
[352908111,1739408371291,150.0,0.00019733,120]
[352908112,1739408688803,314.21592914,0.00020738,120]
[352908113,1739408732604,150.0,0.00019964,120]
[352908114,1739408910733,150.0,0.00019713,120]
[352908133,1739408970751,150.0,0.00019972,120]
[352908152,1739409031881,-357.355385,0.00012698,2]
[352908153,1739409031894,-416.184615,0.00012698,2]
[352908154,1739409031904,-180.45539977,0.00014459,2]
[352908155,1739409031914,-1000.0,0.0001452,3]
[352908156,1739409031925,-341.88,0.00014559,2]
[352908157,1739409031935,-1000.0,0.00014569,2]
[352908159,1739409031944,-2000.0,0.00014575,2]
[352908161,1739409031954,-170.15,0.00014592,2]
[352908163,1739409031963,-421.4,0.00014606,2]
[352908165,1739409031973,-681.44,0.00014669,2]
[352908167,1739409031984,-1000.0,0.00014794,3]
[352908168,1739409031995,-1443.699,0.000148,2]
[352908169,1739409032005,-300.0,0.00014958,2]
[352908170,1739409032015,-775.41,0.00014959,2]
[352908171,1739409032026,-775.41,0.00014959,2]
[352908172,1739409032035,-773.54,0.00014962,2]
[352908173,1739409032045,-24813.31,0.00015,3]
[352908174,1739409032055,-170.88,0.00015035,2]
[352908175,1739409032067,-1000.0,0.00015068,3]
[352908176,1739409032079,-3074.0,0.000152,4]
[352908177,1739409032091,-1000.0,0.000152,2]
[352908179,1739409032101,-498.16,0.00015242,2]
[352908181,1739409032111,-490.85,0.00015257,2]
[352908184,1739409032121,-497.79,0.00015277,2]
[352908186,1739409032130,-506.28,0.00015277,2]
[352908188,1739409032140,-400.0,0.000153,5]
[352908190,1739409032149,-575.6197132,0.00015301,2]
[352908192,1739409032159,-503.05,0.00015301,2]
[352908194,1739409032168,-498.09,0.00015301,2]
[352908196,1739409032178,-502.25,0.00015301,2]
[352908198,1739409032187,-492.98,0.00015301,2]
[352908199,1739409032196,-1000.0,0.00015342,3]
[352908200,1739409032206,-931.46178189,0.00015397,2]
[352908201,1739409032215,-800.0,0.000154,5]
[352908202,1739409032454,-3122.67159,0.0001546,2]
[352908203,1739409032465,-931.46178189,0.00015479,2]
[352908204,1739409032475,-500.0,0.00015488,2]
[352908205,1739409032485,-500.0,0.00015489,2]
[352908206,1739409032495,-495.28429289,0.00015489,2]
[352908207,1739409032512,-4.71570711,0.00015489,2]
[352908208,1739409032522,-1300.0,0.000155,5]
[352908209,1739409032532,-150.0,0.00015513,2]
[352908210,1739409032542,-501.9,0.00015515,2]
[352908211,1739409032551,-502.89,0.00015515,2]
[352908212,1739409032561,-499.23,0.00015515,2]
[352908213,1739409032571,-150.0,0.0001553,2]
[352908214,1739409032583,-152.0,0.00015556,3]
[352908215,1739409032594,-225.59926194,0.00015562,2]
[352908216,1739409032617,-705.86251995,0.00015562,2]
[352908217,1739409032627,-150.0,0.00015564,2]
[352908218,1739409032636,-150.0,0.00015569,2]
[352908219,1739409032646,-150.0,0.00015569,2]
[352908220,1739409032655,-150.0,0.00015583,2]
[352908221,1739409032667,-150.0,0.00015589,2]
[352908222,1739409032677,-150.0,0.00015597,2]
[352908223,1739409032687,-1105.0,0.000156,2]
[352908224,1739409032697,-1684.0374253,0.000156,5]
[352908225,1739409032709,-15.9625747,0.000156,5]
[352908226,1739409032720,-150.0,0.0001561,2]
[352908227,1739409032730,-20076.98995498,0.00015614,5]
[352908228,1739409032765,-6050.83943081,0.00015614,5]
[352908232,1739409037398,-3032.81893428,0.00015614,5]
[352908233,1739409037411,-12311.62956835,0.00015614,5]
[352908234,1739409037575,-1448.78329068,0.00015614,5]
[352908235,1739409037648,-970.66697793,0.00015614,5]
[352908237,1739409039468,-275.00333494,0.00015614,5]
[352908238,1739409039479,-328.8755286,0.00015614,5]
[352908239,1739409039492,-409.30500002,0.00015614,5]
[352908240,1739409039852,-1364.56748555,0.00015614,5]
[352908287,1739409042506,-28778.50239237,0.00015614,5]
[352908288,1739409042566,-383.59079928,0.00015614,5]
[352908289,1739409042683,-266.09485165,0.00015614,5]
[352908297,1739409045468,-504.0,0.000154,2]
[352908298,1739409045478,-8495.14154876,0.00015614,5]
[352908299,1739409045489,-496.28,0.00015616,2]
[352908300,1739409045499,-506.27,0.00015616,2]
[352908301,1739409045510,-501.42,0.00015616,2]
[352908302,1739409045521,-1000.0,0.00015616,3]
[352908303,1739409045532,-931.46178189,0.00015616,2]
[352908304,1739409045543,-12292.21063766,0.0001562,5]
[352908305,1739409045553,-24928.91259467,0.00015623,5]
[352908306,1739409045562,-12292.21063766,0.00015624,5]
[352908307,1739409045572,-460.93375582,0.00015625,5]
[352908308,1739409045582,-347.76142913,0.00015628,5]
[352908309,1739409045591,-24928.91259467,0.00015629,5]
[352908310,1739409045601,-10442.67757368,0.00015634,5]
[352908311,1739409045612,-1360.12522127,0.00015634,5]
[352908316,1739409150891,150.0,0.00019895,120]
[352908317,1739409167239,150.95,0.00010137,2]
[352908318,1739409210939,150.0,0.00019795,120]
[352908319,1739409238620,3997.42865553,0.00020738,120]
[352908320,1739409259847,1420.2063,8.973e-05,2]
[352908321,1739409261977,1000.0,8.851e-05,2]
[352908322,1739409270292,1000.73252601,0.00020738,120]
[352908323,1739409314778,5000.0,8.973e-05,2]
[352908324,1739409413758,515.2226,0.00020738,60]
[352908325,1739409503903,222.22,0.0002,120]
[352908326,1739409721331,12403.1384,8.836e-05,2]
[352908327,1739409908541,1424.94045797,0.00020741,90]
[352908328,1739409911197,1043.63325731,0.00020741,120]
[352908329,1739409920231,220.44425437,0.00020741,120]
[352908330,1739409922240,649.90126153,0.00020741,120]
[352908331,1739409927631,543.50650079,0.0002,120]
[352908332,1739409942603,268.73255412,0.00020741,120]
[352908333,1739409954013,2391.37303009,0.00020741,120]
[352908334,1739409961527,534.36233515,0.00020741,90]
[352908335,1739409969851,283.57366841,0.00020741,60]
[352908336,1739409974918,200.56981454,0.00020741,120]
[352908337,1739409980396,201.32378535,0.00020741,120]
[352908338,1739409981537,322.27624733,0.00020741,120]
[352908339,1739409987312,169.86620151,0.00020741,120]
[352908340,1739409990820,150.0,0.00019965,120]
[352908341,1739410020558,229.18977854,0.00020741,120]
[352908342,1739410033442,198.76577093,0.00020741,120]
[352908343,1739410055689,259.65308368,0.00020741,120]
[352908344,1739410061437,158.65499155,0.00020741,120]
[352908345,1739410066088,359.11528982,0.00020741,120]
[352908346,1739410067174,204.03835179,0.00020741,120]
[352908347,1739410070000,195.29808993,0.00020741,120]
[352908348,1739410074446,260.95211139,0.00020741,120]
[352908349,1739410093968,155.94438252,0.0002,120]
[352908350,1739410110781,150.0,0.00019835,120]
[352908351,1739410111196,1149.6686885,0.00020741,120]
[352908352,1739410115271,179.02391899,0.00020741,120]
[352908353,1739410115738,222.36468165,0.00020741,60]
[352908354,1739410116057,740.95348669,0.00020741,120]
[352908355,1739410116354,2209.04648176,0.00020741,120]
[352908356,1739410116545,154.31289223,0.00020741,120]
[352908357,1739410117210,1893.49213941,0.00020741,120]
[352908358,1739410118188,223.19978217,0.00020741,120]
[352908359,1739410118586,2999.999999,0.00020741,90]
[352908360,1739410118837,706.7697063,0.00020741,120]
[352908361,1739410121675,164.43100909,0.00020741,120]
[352908362,1739410122509,164.95740177,0.00020741,120]
[352908363,1739410124138,319.71987117,0.00020741,120]
[352908364,1739410126585,998.00922397,0.00020741,120]
[352908378,1739410193225,41431.08,8.5e-05,2]
[352908388,1739410231795,-726.82,0.00012679,2]
[352908389,1739410231806,-550.0,0.00013,2]
[352908390,1739410231816,-190.84313976,0.00013847,2]
[352908391,1739410231826,-250.0,0.00013922,2]
[352908392,1739410231835,-15230.27578158,0.00013947,2]
[352908393,1739410231844,-150.0,0.00013947,2]
[352908394,1739410231853,-150.0,0.00013947,2]
[352908395,1739410231864,-150.0,0.00013947,2]
[352908396,1739410231873,-150.0,0.0001448,2]
[352908397,1739410231882,-729.58,0.00014492,2]
[352908398,1739410231891,-7835.812187,0.00014506,2]
[352908399,1739410231901,-489.47783723,0.0001452,3]
[352908400,1739410231911,-250.0,0.00014579,2]
[352908401,1739410231921,-1000.0,0.000146,2]
[352908402,1739410231931,-451.29,0.00014697,2]
[352908403,1739410231941,-1500.0,0.00014697,2]
[352908404,1739410231951,-218.06,0.00014697,2]
[352908405,1739410231960,-23900.0,0.00014697,2]
[352908406,1739410231969,-726.82,0.00014943,2]
[352908407,1739410231978,-600.0,0.00015,2]
[352908408,1739410231988,-314.31,0.00015178,2]
[352908409,1739410231997,-150.0,0.00015178,2]
[352908410,1739410232006,-150.0,0.000153,2]
[352908411,1739410232016,-300.0,0.000153,2]
[352908412,1739410232025,-150.0,0.000153,2]
[352908413,1739410232034,-300.0,0.000153,2]
[352908414,1739410232043,-438.41,0.000153,2]
[352908415,1739410232053,-500.0,0.000153,5]
[352908416,1739410232062,-729.2094041,0.00015303,2]
[352908417,1739410232072,-504.06,0.00015308,2]
[352908418,1739410232081,-502.95,0.00015312,2]
[352908419,1739410232090,-496.0,0.00015319,2]
[352908420,1739410232099,-500.47,0.0001533,2]
[352908421,1739410232109,-503.47,0.00015351,2]
[352908422,1739410232118,-150.0,0.00015354,2]
[352908423,1739410232127,-150.0,0.00015368,2]
[352908424,1739410232136,-150.0,0.00015369,2]
[352908425,1739410232146,-150.0,0.00015369,2]
[352908426,1739410232155,-150.0,0.0001537,2]
[352908427,1739410232165,-150.0,0.00015371,2]
[352908428,1739410232174,-150.0,0.00015371,2]
[352908429,1739410232184,-499.47,0.00015388,2]
[352908430,1739410232193,-1000.0,0.00015391,2]
[352908431,1739410232203,-1000.0,0.000154,5]
[352908432,1739410232213,-150.0,0.00015408,2]
[352908433,1739410232223,-150.0,0.00015412,2]
[352908434,1739410232232,-150.0,0.00015416,2]
[352908435,1739410232241,-150.0,0.00015416,2]
[352908436,1739410232250,-150.0,0.00015421,2]
[352908437,1739410232259,-150.0,0.00015432,2]
[352908438,1739410232269,-150.0,0.00015437,2]
[352908439,1739410232278,-150.0,0.00015448,2]
[352908440,1739410232287,-150.0,0.00015449,2]
[352908441,1739410232297,-150.0,0.00015449,2]
[352908442,1739410232306,-150.0,0.00015454,2]
[352908443,1739410232315,-150.0,0.0001546,2]
[352908444,1739410232324,-150.0,0.0001546,2]
[352908445,1739410232333,-2602.22633,0.0001546,2]
[352908446,1739410232343,-150.0,0.00015463,2]
[352908447,1739410232352,-150.0,0.00015465,2]
[352908449,1739410232362,-150.0,0.00015477,2]
[352908451,1739410232372,-150.0,0.00015481,2]
[352908453,1739410232381,-150.0,0.00015483,2]
[352908455,1739410232391,-150.0,0.00015486,2]
[352908457,1739410232404,-150.0,0.00015488,2]
[352908458,1739410232419,-150.0,0.00015491,2]
[352908459,1739410232429,-150.0,0.00015495,2]
[352908460,1739410232439,-150.0,0.00015498,2]
[352908461,1739410232449,-1005.91,0.000155,2]
[352908462,1739410232459,-1500.0,0.000155,5]
[352908463,1739410232468,-150.0,0.00015513,2]
[352908464,1739410232478,-150.0,0.00015514,2]
[352908465,1739410232487,-150.0,0.00015518,2]
[352908466,1739410232496,-150.0,0.00015518,2]
[352908467,1739410232506,-150.0,0.0001552,2]
[352908468,1739410232515,-150.0,0.0001552,2]
[352908469,1739410232525,-150.0,0.00015523,2]
[352908470,1739410232534,-150.0,0.00015528,2]
[352908471,1739410232544,-150.0,0.0001553,2]
[352908472,1739410232553,-150.0,0.0001553,2]
[352908473,1739410232563,-150.0,0.00015532,2]
[352908474,1739410232572,-150.0,0.00015537,2]
[352908475,1739410232581,-150.0,0.00015539,2]
[352908476,1739410232591,-150.0,0.00015561,2]
[352908477,1739410232601,-62806.1940948,0.00015563,2]
[352908478,1739410232610,-150.0,0.00015582,2]
[352908479,1739410232620,-150.0,0.0001559,2]
[352908480,1739410232629,-150.0,0.00015592,2]
[352908481,1739410232639,-150.0,0.00015593,2]
[352908482,1739410232649,-200.0,0.00015595,5]
[352908483,1739410232658,-150.0,0.00015596,2]
[352908484,1739410232669,-150.0,0.00015597,2]
[352908485,1739410232679,-2000.0,0.000156,5]
[352908486,1739410232691,-497.61354948,0.000156,5]
[352908487,1739410232701,-150.0,0.00015601,2]
[352908488,1739410232710,-497.61354948,0.00015612,5]
[352908489,1739410232720,-150.0,0.00015615,2]
[352908490,1739410232729,-497.61354948,0.00015625,5]
[352908491,1739410232740,-41907.93703161,0.00015634,5]
[352908492,1739410232754,-3821.04146125,0.00015634,5]
[352908493,1739410232765,-849.99999,0.00015634,5]
[352908494,1739410232778,-3149.999975,0.00015634,5]
[352908495,1739410232790,-13734.62917996,0.00015634,5]
[352908496,1739410232802,-1200.0000003,0.00015634,5]
[352908497,1739410232814,-305.38058186,0.00015634,5]
[352908498,1739410232830,-1601.46032278,0.00015634,5]
[352908499,1739410232965,-688.57051642,0.00015634,5]
[352908500,1739410232977,-67459.90148553,0.00015634,5]
[352908503,1739410237595,-416.3300127,0.00015634,5]
[352908504,1739410237670,-182559.15593596,0.00015634,5]
[352908505,1739410237680,-182905.38997906,0.00015636,5]
[352908506,1739410237692,-146591.81930926,0.00015636,5]
[352908507,1739410237702,-3698.22167168,0.00015643,5]
[352908508,1739410237711,-10163.198807,0.00015644,5]
[352908509,1739410237721,-200.0,0.00015645,5]
[352908510,1739410237730,-8430.12760607,0.00015645,5]
[352908511,1739410237739,-460.93375582,0.00015645,5]
[352908512,1739410237748,-8430.12760607,0.00015649,5]
[352908513,1739410237761,-952.49191286,0.0001565,2]
[352908514,1739410237773,-302.78014896,0.0001565,2]
[352908515,1739410237782,-3698.22167168,0.00015653,5]
[352908516,1739410237791,-347.76142913,0.00015653,5]
[352908517,1739410237801,-347.76142913,0.00015654,5]
[352908518,1739410237810,-200.0,0.00015658,5]
[352908519,1739410237819,-181.98218041,0.0001566,2]
[352908520,1739410237828,-505.79,0.00015661,2]
[352908521,1739410237842,-497.61354948,0.00015666,5]
[352908522,1739410237851,-8430.12760607,0.00015668,5]
[352908523,1739410237860,-8430.12760607,0.00015671,5]
[352908524,1739410237869,-460.93375582,0.00015673,5]
[352908525,1739410237879,-952.49191281,0.00015678,2]
[352908526,1739410237889,-460.93375582,0.00015683,5]
[352908527,1739410237898,-347.76142913,0.00015693,5]
[352908528,1739410237909,-12292.21063766,0.00015698,5]
[352908529,1739410237920,-164.16230038,0.00015698,2]
[352908530,1739410237930,-931.46178189,0.00015699,2]
[352908531,1739410237941,-607.21212402,0.00015699,2]
[352908532,1739410237951,-2500.0,0.000157,5]
[352908533,1739410237960,-734.0,0.000157,2]
[352908534,1739410237970,-747.0,0.000157,2]
[352908535,1739410237981,-462.0,0.000157,2]
[352908536,1739410237997,-979.0,0.000157,2]
[352908537,1739410238006,-952.49191281,0.00015706,2]
[352908538,1739410238015,-302.78014893,0.00015713,2]
[352908539,1739410238025,-952.49191281,0.00015733,2]
[352908540,1739410238034,-9823.98203823,0.00015749,3]
[352908541,1739410238046,-1356.10336694,0.00015749,3]
[352908542,1739410238057,-1950.82061546,0.00015749,3]
[352908543,1739410238078,-813.76417435,0.00015749,3]
[352908544,1739410238090,-862.24427429,0.00015749,3]
[352908545,1739410238101,-352.10604785,0.00015749,3]
[352908546,1739410238112,-321.66432002,0.00015749,3]
[352908547,1739410238123,-1962.58,0.00015749,3]
[352908548,1739410238135,-992.79717625,0.00015749,3]
[352908549,1739410238155,-690.02331273,0.00015749,3]
[352908573,1739410239745,-35984.9962994,0.00015749,3]
[352908574,1739410239806,-29643.33930656,0.00015749,3]
[352908575,1739410239872,-819.65,0.00015749,3]
[352908576,1739410239943,-444394.26861516,0.00015749,3]
[352908577,1739410239953,-200455.681805,0.0001575,2]
[352908578,1739410239964,-182.68688114,0.0001576,2]
[352908579,1739410239974,-952.49191281,0.00015761,2]
[352908580,1739410239984,-500.0,0.00015773,2]
[352908581,1739410239994,-302.78014893,0.00015775,2]
[352908582,1739410240004,-152.6,0.0001578,2]
[352908583,1739410240014,-152.6,0.0001578,2]
[352908584,1739410240024,-931.46178189,0.00015781,2]
[352908585,1739410240034,-952.49191281,0.00015789,2]
[352908586,1739410240045,-300.0,0.00015789,2]
[352908587,1739410240056,-300.0,0.00015789,2]
[352908588,1739410240065,-300.0,0.00015789,2]
[352908589,1739410240075,-300.0,0.00015789,2]
[352908590,1739410240085,-404.21477327,0.00015789,2]
[352908591,1739410240095,-260.89403752,0.00015789,2]
[352908592,1739410240105,-1453.0,0.0001579,2]
[352908593,1739410240115,-373.9486442,0.0001579,2]
[352908594,1739410240124,-334092.803008,0.0001579,2]
[352908596,1739410240134,-152.6,0.0001579,2]
[352908598,1739410240144,-152.6,0.0001579,2]
[352908599,1739410240154,-152.6,0.0001579,2]
[352908601,1739410240165,-152.6,0.0001579,2]
[352908603,1739410240175,-152.6,0.0001579,2]
[352908605,1739410240185,-152.6,0.0001579,2]
[352908608,1739410240197,-2000.0,0.00015799,2]
[352908610,1739410240208,-2000.0,0.00015799,3]
[352908612,1739410240218,-2000.0,0.00015799,5]
[352908614,1739410240228,-999.0,0.00015799,2]
[352908616,1739410240238,-300.0,0.00015799,2]